fUSD/lending_fUSD_20251221
["ID","MTS","AMOUNT","RATE_DAILY","PERIOD"]
[399330710,1766309439950,-196.43,0.00013699,2]
[399330711,1766309439960,-200.0,0.00013699,2]
[399330712,1766309439970,-500.0,0.00013699,2]
[399330713,1766309439979,-500.0,0.00013699,2]
[399330714,1766309439989,-416.68348694,0.00013699,2]
[399330715,1766309439998,-413.23633539,0.00013699,2]
[399330716,1766309440008,-1680.0,0.00013718,2]
[399330717,1766309440018,-157.6243487,0.00013737,2]
[399330718,1766309440028,-166.66,0.00013764,2]
[399330719,1766309440037,-1124.5,0.00013767,2]
[399330720,1766309440047,-154.58,0.00013801,2]
[399330721,1766309440057,-535.22474582,0.00013821,2]
[399330722,1766309440067,-501.0380524,0.00013821,2]
[399330723,1766309440076,-572.75082077,0.00013821,2]
[399330724,1766309440087,-208.16009032,0.00013821,2]
[399330725,1766309440097,-500.84654228,0.00013821,2]
[399330726,1766309440107,-1001.62490087,0.00013821,2]
[399330727,1766309440117,-1000.0,0.00013821,2]
[399330728,1766309440127,-1001.10835573,0.00013821,2]
[399330729,1766309440136,-1000.0,0.00013821,2]
[399330730,1766309440145,-501.44037787,0.00013821,2]
[399330731,1766309440154,-1000.0,0.00013821,2]
[399330732,1766309440163,-1000.0,0.00013821,2]
[399330733,1766309440172,-1000.0,0.00013821,2]
[399330734,1766309440183,-788.01434747,0.00013821,2]
[399330735,1766309440193,-789.33467407,0.00013821,2]
[399330736,1766309440202,-1000.0,0.00013821,2]
[399330737,1766309440211,-1000.0,0.00013821,2]
[399330738,1766309440222,-1000.0,0.00013821,2]
[399330739,1766309440233,-166.66,0.00013841,2]
[399330740,1766309440243,-5686.52761459,0.00013948,2]
[399330741,1766309440252,-315.70146582,0.00013948,2]
[399330742,1766309440261,-166.66,0.00013984,2]
[399330743,1766309440271,-1124.5,0.00014041,2]
[399330744,1766309440280,-500.0,0.00014047,2]
[399330745,1766309440291,-166.66,0.00014127,2]
[399330746,1766309440300,-500.0,0.0001418,2]
[399330747,1766309440681,-500.0,0.0001418,2]
[399330748,1766309440696,-500.0,0.0001418,2]
[399330749,1766309440706,-166.66,0.00014269,2]
[399330750,1766309440715,-166.66,0.00014309,2]
[399330751,1766309440724,-1124.5,0.00014315,2]
[399330752,1766309440733,-1500.0,0.00014368,2]
[399330753,1766309440742,-1500.0,0.00014368,2]
[399330754,1766309440752,-1500.0,0.00014368,2]
[399330755,1766309440761,-1500.0,0.00014368,2]
[399330756,1766309440771,-1500.0,0.00014368,2]
[399330757,1766309440782,-157.6243487,0.0001437,2]
[399330758,1766309440794,-1262.0,0.00014374,2]
[399330759,1766309440803,-518.0,0.00014374,2]
[399330760,1766309440812,-911.0,0.00014374,2]
[399330761,1766309440822,-1197.0,0.00014374,2]
[399330762,1766309440831,-1326.0,0.00014374,2]
[399330763,1766309440839,-612.0,0.00014374,2]
[399330764,1766309440848,-1609.0,0.00014374,2]
[399330765,1766309440857,-13051.439743,0.00014379,2]
[399330766,1766309440866,-1738.3964555,0.00014379,2]
[399330767,1766309440876,-1804.6214532,0.00014379,2]
[399330768,1766309440885,-166.66,0.00014412,2]
[399330769,1766309440894,-397.16543724,0.00014416,2]
[399330770,1766309440904,-5686.52761459,0.0001444,2]
[399330771,1766309440914,-1150.84,0.00014525,2]
[399330772,1766309440923,-1124.57514096,0.00014589,2]
[399330773,1766309440933,-315.70146582,0.00014686,2]
[399330774,1766309440942,-2912.16984,0.00014742,2]
[399330775,1766309440951,-387.8886795,0.00014742,2]
[399330776,1766309440961,-402.6654738,0.00014742,2]
[399330777,1766309440972,-500.0,0.00014808,2]
[399330778,1766309440981,-433.0,0.00014836,2]
[399330779,1766309440990,-166.66,0.00014855,2]
[399330780,1766309440999,-2000.0,0.00014916,2]
[399330781,1766309441008,-500.0,0.00014916,2]
[399330782,1766309441017,-502.34827947,0.00014916,2]
[399330783,1766309441026,-2000.0,0.00014916,2]
[399330784,1766309441036,-2000.0,0.00014916,2]
[399330785,1766309441045,-5686.52761459,0.00014932,2]
[399330786,1766309441054,-157.6243487,0.00015002,2]
[399330787,1766309441063,-151.0,0.00015009,2]
[399330788,1766309441072,-151.0,0.00015009,2]
[399330789,1766309441081,-450.0,0.00015068,2]
[399330790,1766309441091,-151.0,0.00015068,2]
[399330791,1766309441100,-151.0,0.00015068,2]
[399330792,1766309441109,-151.0,0.00015068,2]
[399330793,1766309441119,-2351.0,0.0001509,2]
[399330794,1766309441128,-6302.0,0.00015122,2]
[399330795,1766309441137,-1000.0,0.00015196,2]
[399330796,1766309441146,-150.0,0.00015288,2]
[399330797,1766309441156,-150.0,0.00015288,2]
[399330798,1766309441166,-152.05425159,0.00015288,2]
[399330799,1766309441175,-150.0,0.00015288,2]
[399330800,1766309441184,-150.0,0.00015288,2]
[399330801,1766309441193,-150.0,0.00015288,2]
[399330802,1766309441202,-150.0,0.00015288,2]
[399330803,1766309441212,-150.0,0.00015288,2]
[399330804,1766309441226,-150.0,0.00015288,2]
[399330805,1766309441235,-151.68546767,0.00015288,2]
[399330806,1766309441244,-150.0,0.00015288,2]
[399330807,1766309441254,-150.0,0.00015288,2]
[399330808,1766309441264,-150.0,0.00015288,2]
[399330809,1766309441273,-150.0,0.00015348,2]
[399330810,1766309441283,-150.0,0.00015356,2]
[399330811,1766309441294,-150.0,0.00015394,2]
[399330812,1766309441305,-166.66,0.000154,2]
[399330813,1766309441314,-150.0,0.00015409,2]
[399330814,1766309441324,-150.0,0.00015409,2]
[399330815,1766309441334,-150.0,0.00015424,2]
[399330816,1766309441343,-5686.52761459,0.00015424,2]
[399330817,1766309441352,-315.70146582,0.00015424,2]
[399330818,1766309441361,-150.0,0.00015429,2]
[399330819,1766309441370,-150.0,0.00015442,2]
[399330820,1766309441380,-620.0,0.00015445,2]
[399330821,1766309441389,-5000.0,0.00015445,2]
[399330822,1766309441399,-553.64373807,0.00015445,2]
[399330823,1766309441408,-721.12765535,0.00015445,2]
[399330824,1766309441417,-2000.0,0.00015445,2]
[399330825,1766309441428,-664.94318066,0.00015445,2]
[399330826,1766309441437,-2000.0,0.00015445,2]
[399330827,1766309441447,-151.0,0.00015445,2]
[399330828,1766309441457,-2000.0,0.00015445,2]
[399330829,1766309441467,-2000.0,0.00015445,2]
[399330830,1766309441476,-2000.0,0.00015445,2]
[399330831,1766309441486,-2000.0,0.00015445,2]
[399330832,1766309441495,-2000.0,0.00015445,2]
[399330833,1766309441504,-161.14216565,0.00015445,2]
[399330834,1766309441514,-831.97102116,0.00015445,2]
[399330835,1766309441524,-151.0,0.00015445,2]
[399330836,1766309441534,-500.0,0.00015445,2]
[399330837,1766309441544,-250.0,0.00015445,2]
[399330838,1766309441553,-500.0,0.00015445,2]
[399330839,1766309441563,-200.0,0.00015445,2]
[399330840,1766309441572,-500.0,0.00015445,2]
[399330841,1766309441582,-250.0,0.00015445,2]
[399330842,1766309441592,-207.4,0.00015445,2]
[399330843,1766309441601,-250.0,0.00015445,2]
[399330844,1766309441610,-215.0738,0.00015445,2]
[399330845,1766309441620,-261.07194788,0.00015445,2]
[399330846,1766309441629,-201.93286099,0.00015445,2]
[399330847,1766309441639,-223.0315306,0.00015445,2]
[399330848,1766309441648,-231.28369723,0.00015445,2]
[399330849,1766309441657,-239.84119403,0.00015445,2]
[399330850,1766309441666,-248.71531821,0.00015445,2]
[399330851,1766309441676,-257.91778498,0.00015445,2]
[399330852,1766309441686,-267.46074303,0.00015445,2]
[399330853,1766309441695,-151.0,0.00015445,2]
[399330854,1766309441705,-500.0,0.00015445,2]
[399330855,1766309441715,-1000.0,0.00015445,2]
[399330856,1766309441724,-500.0,0.00015445,2]
[399330857,1766309441734,-1000.0,0.00015445,2]
[399330858,1766309441743,-500.0,0.00015445,2]
[399330859,1766309441752,-1000.0,0.00015445,2]
[399330860,1766309441762,-500.0,0.00015445,2]
[399330861,1766309441771,-1000.0,0.00015445,2]
[399330862,1766309441781,-5450.0,0.00015445,2]
[399330863,1766309441790,-614.75428362,0.00015445,2]
[399330864,1766309441800,-1000.0,0.00015445,2]
[399330865,1766309441811,-1000.0,0.00015445,2]
[399330866,1766309441820,-250.0,0.00015445,2]
[399330867,1766309441829,-1000.0,0.00015445,2]
[399330868,1766309441839,-548.92065365,0.00015445,2]
[399330869,1766309441848,-578.20924308,0.00015445,2]
[399330870,1766309441857,-500.0,0.00015445,2]
[399330871,1766309441868,-500.0,0.00015445,2]
[399330872,1766309441877,-500.0,0.00015445,2]
[399330873,1766309441887,-500.0,0.00015445,2]
[399330874,1766309441896,-500.0,0.00015445,2]
[399330875,1766309441906,-500.0,0.00015445,2]
[399330876,1766309441915,-500.0,0.00015445,2]
[399330877,1766309441925,-500.0,0.00015445,2]
[399330878,1766309441934,-500.0,0.00015445,2]
[399330879,1766309441943,-500.0,0.00015445,2]
[399330880,1766309441953,-514.74329666,0.00015445,2]
[399330881,1766309441963,-300.0,0.00015445,2]
[399330882,1766309441974,-152.067628,0.00015445,2]
[399330883,1766309441983,-151.0,0.00015445,2]
[399330884,1766309441993,-151.0,0.00015445,2]
[399330885,1766309442003,-157.119013,0.00015445,2]
[399330886,1766309442013,-151.0,0.00015445,2]
[399330887,1766309442023,-151.0,0.00015445,2]
[399330888,1766309442033,-508.949884,0.00015445,2]
[399330889,1766309442043,-508.949884,0.00015445,2]
[399330890,1766309442052,-508.949884,0.00015445,2]
[399330891,1766309442061,-508.949884,0.00015445,2]
[399330892,1766309442070,-2500.0,0.00015464,2]
[399330893,1766309442080,-2500.0,0.00015464,2]
[399330894,1766309442090,-1557.65481763,0.00015464,2]
[399330895,1766309442099,-150.0,0.0001547,2]
[399330896,1766309442108,-150.0,0.00015492,2]
[399330897,1766309442118,-150.0,0.000155,2]
[399330898,1766309442127,-150.0,0.0001553,2]
[399330899,1766309442136,-150.0,0.0001553,2]
[399330900,1766309442145,-150.0,0.00015559,2]
[399330901,1766309442156,-150.0,0.00015571,2]
[399330902,1766309442165,-981.5069699,0.00015586,2]
[399330903,1766309442175,-150.0,0.00015587,2]
[399330904,1766309442184,-261.0,0.00015587,2]
[399330905,1766309442193,-150.0,0.00015587,2]
[399330906,1766309442202,-212.0,0.00015587,2]
[399330907,1766309442211,-150.516,0.00015587,2]
[399330908,1766309442224,-150.0,0.00015587,2]
[399330909,1766309442233,-150.455,0.00015587,2]
[399330910,1766309442242,-150.375,0.00015587,2]
[399330911,1766309442251,-150.0,0.00015587,2]
[399330912,1766309442261,-150.0,0.00015591,2]
[399330913,1766309442270,-150.0,0.00015597,2]
[399330914,1766309442279,-150.0,0.00015606,2]
[399330915,1766309442289,-150.0,0.00015627,2]
[399330916,1766309442301,-5007.0,0.00015631,2]
[399330917,1766309442310,-157.6243487,0.00015635,2]
[399330918,1766309442320,-150.0,0.00015652,2]
[399330919,1766309442329,-150.0,0.00015652,2]
[399330920,1766309442338,-3834.65811313,0.00015675,2]
[399330921,1766309442348,-151.0,0.00015675,2]
[399330922,1766309442357,-150.0,0.00015695,2]
[399330923,1766309442367,-150.0,0.00015712,2]
[399330924,1766309442376,-150.0,0.00015712,2]
[399330925,1766309442385,-150.0,0.00015712,2]
[399330926,1766309442394,-150.0,0.00015712,2]
[399330927,1766309442403,-5007.0,0.00015744,2]
[399330928,1766309442412,-151.0,0.00015744,2]
[399330929,1766309442421,-150.0,0.00015751,2]
[399330930,1766309442430,-150.0,0.00015763,2]
[399330931,1766309442439,-150.0,0.00015773,2]
[399330932,1766309442448,-150.0,0.00015773,2]
[399330933,1766309442458,-150.0,0.00015818,2]
[399330934,1766309442467,-150.0,0.00015831,2]
[399330935,1766309442477,-150.0,0.00015834,2]
[399330936,1766309442486,-150.0,0.00015854,2]
[399330937,1766309442496,-150.0,0.00015854,2]
[399330938,1766309442505,-150.0,0.00015854,2]
[399330939,1766309442515,-10000.0,0.0001588,2]
[399330940,1766309442523,-150.0,0.00015894,2]
[399330941,1766309442532,-150.0,0.00015894,2]
[399330942,1766309442541,-150.0,0.00015899,2]
[399330943,1766309442550,-217.015063,0.00015902,2]
[399330944,1766309442559,-5007.0,0.00015902,2]
[399330945,1766309442568,-788.26081965,0.00015903,2]
[399330946,1766309442577,-150.0,0.00015905,2]
[399330947,1766309442587,-154.58,0.00015913,2]
[399330948,1766309442595,-5686.52761459,0.00015916,2]
[399330949,1766309442605,-150.0,0.00015925,2]
[399330950,1766309442614,-150.0,0.00015955,2]
[399330951,1766309442623,-150.0,0.00015967,2]
[399330952,1766309442633,-500.0,0.00015972,2]
[399330953,1766309442643,-500.0,0.00015973,2]
[399330954,1766309442652,-160.18477965,0.00015973,2]
[399330955,1766309442661,-500.96497505,0.00015973,2]
[399330956,1766309442670,-168.18676432,0.00015973,2]
[399330957,1766309442679,-500.56420784,0.00015973,2]
[399330958,1766309442688,-518.86476464,0.00015973,2]
[399330959,1766309442697,-334.60508476,0.00015973,2]
[399330960,1766309442706,-330.74959628,0.00015973,2]
[399330961,1766309442717,-500.81615011,0.00015973,2]
[399330962,1766309442726,-426.64941198,0.00015973,2]
[399330963,1766309442735,-160.18648397,0.00015973,2]
[399330964,1766309442744,-160.18740865,0.00015973,2]
[399330965,1766309442753,-160.18648397,0.00015973,2]
[399330966,1766309442762,-501.34405812,0.00015973,2]
[399330967,1766309442771,-543.24024385,0.00015973,2]
[399330968,1766309442780,-500.92329476,0.00015973,2]
[399330969,1766309442788,-500.69834491,0.00015973,2]
[399330970,1766309442798,-574.12855637,0.00015993,2]
[399330971,1766309442807,-151.0,0.00015993,2]
[399330972,1766309442816,-209.40437684,0.00015993,2]
[399330973,1766309442825,-1000.0,0.00015995,2]
[399330974,1766309442835,-1000.0,0.00015995,2]
[399330975,1766309442845,-1000.0,0.00015995,2]
[399330976,1766309442855,-1000.0,0.00015995,2]
[399330977,1766309442864,-1000.0,0.00015995,2]
[399330978,1766309442873,-1000.0,0.00015995,2]
[399330979,1766309442882,-1000.0,0.00015995,2]
[399330980,1766309442891,-1000.0,0.00015995,2]
[399330981,1766309442901,-1000.0,0.00015995,2]
[399330982,1766309442911,-1000.0,0.00015995,2]
[399330983,1766309442921,-1000.0,0.00015995,2]
[399330984,1766309442932,-1000.0,0.00015995,2]
[399330985,1766309442942,-1000.0,0.00015995,2]
[399330986,1766309442952,-1000.0,0.00015995,2]
[399330987,1766309442962,-1000.0,0.00015995,2]
[399330988,1766309442972,-1000.0,0.00015995,2]
[399330989,1766309442981,-1000.0,0.00015995,2]
[399330990,1766309442992,-1000.0,0.00015995,2]
[399330991,1766309443001,-1000.0,0.00015995,2]
[399330992,1766309443010,-1000.0,0.00015995,2]
[399330993,1766309443019,-1000.0,0.00015995,2]
[399330994,1766309443029,-1000.0,0.00015995,2]
[399330995,1766309443038,-1000.0,0.00015995,2]
[399330996,1766309443048,-1000.0,0.00015995,2]
[399330997,1766309443059,-1000.0,0.00015995,2]
[399330998,1766309443069,-1000.0,0.00015995,2]
[399330999,1766309443078,-1000.0,0.00015995,2]
[399331000,1766309443087,-1036.30235592,0.00015995,2]
[399331001,1766309443096,-7000.0,0.00015995,2]
[399331002,1766309443107,-150.0,0.00015995,2]
[399331003,1766309443116,-500.0,0.00015999,2]
[399331004,1766309443125,-508.72089937,0.00015999,2]
[399331005,1766309443134,-92357.04137392,0.00016,4]
[399331007,1766309444355,-328.31959918,0.00016,4]
[399331008,1766309444367,-57682.95017283,0.00016,4]
[399331009,1766309444512,-151.0,0.00013698,2]
[399331010,1766309444522,-13866.1066969,0.00016,4]
[399331011,1766309444533,-75270.35751904,0.00016,4]
[399331012,1766309444544,-3213.84662727,0.00016,4]
[399331013,1766309444555,-2900.18651994,0.00016,4]
[399331014,1766309444565,-1854.36,0.00016,4]
[399331015,1766309444581,-380.30947352,0.00016,4]
[399331028,1766309446403,-198.88428807,0.00013698,2]
[399331030,1766309446413,-2098.75667572,0.00014374,2]
[399331033,1766309446426,-1357.24332428,0.00014374,2]
[399331035,1766309446436,-151.0,0.00015999,2]
[399331036,1766309446446,-1231.95667572,0.00016,4]
[399331044,1766309446514,-889.25411895,0.00016,4]
[399331192,1766310086137,150.0,0.000135,4]
[399331221,1766310286777,414.52,0.00022,30]
[399331231,1766310372449,160.36,0.00011805,2]
[399331248,1766310581576,2068.87,0.0001192,2]
[399331254,1766310631422,-822.10562034,0.0001204,2]
[399331255,1766310631434,-377.89437966,0.0001204,2]
[399331256,1766310631443,-248.42137988,0.0001204,2]
[399331257,1766310631455,-51.57862012,0.0001204,2]
[399331258,1766310631466,-250.0,0.0001204,2]
[399331259,1766310631477,-300.0,0.00012041,2]
[399331260,1766310631487,-1930.52284052,0.00012041,2]
[399331261,1766310631498,-1001.89552022,0.00012041,2]
[399331262,1766310631514,-8758.08323232,0.00012041,2]
[399331263,1766310631528,-1091.80232096,0.00012041,2]
[399331264,1766310631604,-2742.95608598,0.00012041,2]
[399331265,1766310631614,-2213.15,0.00012154,2]
[399331266,1766310631623,-686.17679617,0.00012163,2]
[399331267,1766310631634,-8139.049153,0.00012163,2]
[399331268,1766310631646,-2816.2377533,0.00012163,2]
[399331269,1766310631656,-1224.2844206,0.00012163,2]
[399331271,1766310631666,-1470.84,0.00012187,2]
[399331273,1766310631675,-15783.25248454,0.00012246,2]
[399331282,1766310638325,-213.88953184,0.00012245,2]
[399331283,1766310638335,-500.0,0.00012245,2]
[399331284,1766310638345,-161.044056,0.00012245,2]
[399331285,1766310638354,-500.0,0.00012245,2]
[399331286,1766310638364,-500.0,0.00012245,2]
[399331287,1766310638373,-77.67698801,0.00012245,2]
[399331288,1766310638385,-422.32301199,0.00012245,2]
[399331289,1766310638394,-500.0,0.00012245,2]
[399331290,1766310638404,-445.7312911,0.00012245,2]
[399331291,1766310638439,-54.2687089,0.00012245,2]
[399331292,1766310638448,-500.0,0.00012245,2]
[399331293,1766310638457,-500.0,0.00012245,2]
[399331294,1766310638467,-500.0,0.00012245,2]
[399331295,1766310638481,-500.0,0.00012245,2]
[399331296,1766310638496,-500.0,0.00012245,2]
[399331297,1766310638512,-500.0,0.00012245,2]
[399331298,1766310638524,-500.0,0.00012245,2]
[399331299,1766310638540,-500.0,0.00012245,2]
[399331300,1766310638557,-500.0,0.00012245,2]
[399331301,1766310638573,-500.0,0.00012245,2]
[399331302,1766310638587,-500.0,0.00012245,2]
[399331303,1766310638601,-500.0,0.00012245,2]
[399331304,1766310638615,-500.0,0.00012245,2]
[399331305,1766310638630,-417.05484853,0.00012245,2]
[399331306,1766310638645,-984216.74751546,0.00012246,2]
[399331307,1766310638664,-999.0,0.00012263,3]
[399331308,1766310638680,-166.66,0.00012315,2]
[399331309,1766310638696,-150.0,0.00012344,2]
[399331310,1766310638711,-355.349,0.00012345,2]
[399331311,1766310638726,-25196.3449,0.00012346,2]
[399331312,1766310638740,-6689.5733,0.00012346,2]
[399331313,1766310638757,-4525.52,0.00012382,2]
[399331314,1766310638772,-151.0,0.00012439,2]
[399331315,1766310638786,-151.0,0.00012439,2]
[399331316,1766310638798,-178.01892811,0.00012439,2]
[399331317,1766310638816,-500.0,0.00012439,2]
[399331318,1766310638833,-500.0,0.00012439,2]
[399331319,1766310638844,-500.0,0.00012439,2]
[399331320,1766310638859,-500.0,0.00012439,2]
[399331321,1766310638875,-500.0,0.00012439,2]
[399331322,1766310638891,-500.0,0.00012439,2]
[399331323,1766310638903,-500.0,0.00012439,2]
[399331324,1766310638916,-500.0,0.00012439,2]
[399331325,1766310638942,-500.0,0.00012439,2]
[399331326,1766310638956,-396.0615972,0.00012439,2]
[399331327,1766310638970,-500.0,0.00012439,2]
[399331328,1766310638983,-500.0,0.00012439,2]
[399331329,1766310638996,-500.0,0.00012439,2]
[399331330,1766310639012,-500.0,0.00012439,2]
[399331331,1766310639026,-200.0,0.00012439,2]
[399331332,1766310639041,-151.0,0.00012439,2]
[399331333,1766310639054,-151.0,0.00012439,2]
[399331334,1766310639066,-151.0,0.00012439,2]
[399331335,1766310639079,-151.0,0.00012439,2]
[399331336,1766310639093,-151.0,0.00012439,2]
[399331337,1766310639107,-151.0,0.00012439,2]
[399331338,1766310639120,-200.0,0.00012439,2]
[399331339,1766310639137,-151.0,0.00012439,2]
[399331340,1766310639151,-151.0,0.00012439,2]
[399331341,1766310639164,-151.0,0.00012439,2]
[399331342,1766310639178,-200.0,0.00012439,2]
[399331343,1766310639191,-500.0,0.00012439,2]
[399331344,1766310639205,-1473.89,0.00012439,2]
[399331345,1766310639218,-500.0,0.00012444,2]
[399331346,1766310639231,-1000.0,0.00012454,2]
[399331347,1766310639245,-500.0,0.00012525,2]
[399331348,1766310639258,-2293.47442384,0.00012635,2]
[399331349,1766310639272,-1791.0,0.00012641,2]
[399331350,1766310639286,-306.0,0.00012666,2]
[399331351,1766310639299,-10955.28690622,0.00012689,2]
[399331352,1766310639312,-1473.89,0.00012713,2]
[399331353,1766310639325,-166.66,0.00012721,2]
[399331354,1766310639339,-686.1767961,0.0001284,2]
[399331355,1766310639353,-1224.28442056,0.00012953,2]
[399331356,1766310639366,-200.0,0.00012987,2]
[399331357,1766310639379,-200.0,0.00012987,2]
[399331358,1766310639393,-500.0,0.00012987,2]
[399331359,1766310639407,-1473.89,0.00012987,2]
[399331360,1766310639420,-150.0,0.00012999,2]
[399331361,1766310639433,-150.0,0.00012999,2]
[399331362,1766310639446,-150.0,0.00012999,2]
[399331364,1766310639459,-166.66,0.00013128,2]
[399331366,1766310639472,-150.0,0.00013136,2]
[399331367,1766310639484,-10955.28690622,0.00013216,2]
[399331368,1766310639497,-420.0,0.00013217,2]
[399331369,1766310639510,-300.0,0.00013244,2]
[399331370,1766310639522,-193.0,0.00013244,2]
[399331371,1766310639535,-250.0,0.00013244,2]
[399331372,1766310639547,-195.0,0.00013244,2]
[399331373,1766310639560,-1680.0,0.00013244,2]
[399331374,1766310639573,-1473.89,0.00013261,2]
[399331375,1766310639586,-172.62322663,0.00013273,2]
[399331376,1766310639599,-501.13880069,0.00013273,2]
[399331377,1766310639612,-500.0,0.00013273,2]
[399331378,1766310639625,-172.78810174,0.00013273,2]
[399331379,1766310639637,-500.0,0.00013273,2]
[399331380,1766310639650,-163.12595914,0.00013273,2]
[399331381,1766310639663,-500.0,0.00013273,2]
[399331382,1766310639676,-224.07561459,0.00013273,2]
[399331383,1766310639688,-535.80488435,0.00013273,2]
[399331384,1766310639701,-174.7668322,0.00013273,2]
[399331385,1766310639715,-500.0,0.00013273,2]
[399331386,1766310639727,-500.0,0.00013273,2]
[399331387,1766310639739,-166.07222089,0.00013273,2]
[399331388,1766310639752,-500.0,0.00013273,2]
[399331389,1766310639765,-500.28275711,0.00013273,2]
[399331390,1766310639777,-176.68955298,0.00013273,2]
[399331391,1766310639790,-163.74041745,0.00013273,2]
[399331392,1766310639805,-165.55250469,0.00013273,2]
[399331393,1766310639817,-500.0,0.00013273,2]
[399331394,1766310639830,-169.30599703,0.00013273,2]
[399331395,1766310639841,-500.0,0.00013273,2]
[399331396,1766310639853,-235.5477362,0.00013273,2]
[399331397,1766310639866,-168.62041939,0.00013273,2]
[399331398,1766310639879,-500.0,0.00013273,2]
[399331399,1766310639892,-500.0,0.00013273,2]
[399331400,1766310639906,-500.0,0.00013273,2]
[399331401,1766310639918,-276.49556074,0.00013273,2]
[399331402,1766310639930,-500.0,0.00013273,2]
[399331403,1766310639942,-500.0,0.00013273,2]
[399331404,1766310639954,-500.0,0.00013273,2]
[399331405,1766310639967,-500.0,0.00013273,2]
[399331406,1766310639979,-500.0,0.00013273,2]
[399331407,1766310639992,-500.0,0.00013273,2]
[399331408,1766310640004,-500.0,0.00013273,2]
[399331409,1766310640016,-515.90612576,0.00013273,2]
[399331410,1766310640028,-500.0,0.00013273,2]
[399331411,1766310640041,-160.24966058,0.00013273,2]
[399331412,1766310640053,-500.0,0.00013273,2]
[399331413,1766310640066,-500.0,0.00013273,2]
[399331414,1766310640079,-500.0,0.00013273,2]
[399331415,1766310640091,-162.06342056,0.00013273,2]
[399331416,1766310640103,-500.0,0.00013273,2]
[399331417,1766310640116,-500.0,0.00013273,2]
[399331418,1766310640128,-500.0,0.00013273,2]
[399331419,1766310640140,-201.68060624,0.00013273,2]
[399331420,1766310640152,-536.20400277,0.00013273,2]
[399331423,1766310640164,-165.47156837,0.00013273,2]
[399331424,1766310640176,-500.0,0.00013273,2]
[399331425,1766310640188,-500.0,0.00013273,2]
[399331426,1766310640200,-179.52644703,0.00013273,2]
[399331427,1766310640213,-165.33365869,0.00013273,2]
[399331428,1766310640226,-500.0,0.00013273,2]
[399331429,1766310640238,-500.0,0.00013273,2]
[399331430,1766310640251,-165.81830667,0.00013273,2]
[399331431,1766310640263,-315.46585289,0.00013273,2]
[399331432,1766310640277,-250.0,0.00013273,2]
[399331433,1766310640290,-641.66939908,0.00013354,2]
[399331434,1766310640303,-255.0,0.00013431,2]
[399331435,1766310640315,-686.1767961,0.00013516,2]
[399331436,1766310640328,-166.66,0.00013534,2]
[399331437,1766310640340,-200.0,0.00013535,2]
[399331438,1766310640353,-200.0,0.00013535,2]
[399331439,1766310640365,-500.0,0.00013535,2]
[399331440,1766310640377,-1473.89,0.00013535,2]
[399331441,1766310640390,-1000.0,0.00013564,2]
[399331442,1766310640402,-227.01,0.00013684,2]
[399331443,1766310640414,-500.0,0.00013698,2]
[399331444,1766310640427,-500.0,0.00013698,2]
[399331445,1766310640439,-500.0,0.00013698,2]
[399331446,1766310640451,-500.0,0.00013698,2]
[399331447,1766310640465,-500.0,0.00013698,2]
[399331448,1766310640477,-500.0,0.00013698,2]
[399331449,1766310640489,-330.65900624,0.00013698,2]
[399331450,1766310640502,-500.0,0.00013698,2]
[399331451,1766310640515,-500.0,0.00013698,2]
[399331452,1766310640528,-500.0,0.00013698,2]